bitfinex-derivatives/quotes_ETHF0:USTF0_20251116
["timestamp","ask_amount","ask_price","bid_price","bid_amount"]
[1763253395002,0.25023194,3155.8,3155.4,3.2078]
[1763253395203,0.3863,3155.5,3155.4,3.72153]
[1763253395602,0.3863,3155.5,3155.4,3.2078]
[1763253402004,0.1445,3155.0,3154.9,0.75072]
[1763253402205,0.2418,3155.1,3154.9,0.5138]
[1763253402509,0.2418,3155.1,3155.0,0.7507]
[1763253403112,0.88708499,3155.5,3155.1,0.51377]
[1763253403312,0.2418,3155.3,3155.2,0.51376]
[1763253403813,0.2418,3155.3,3154.8,3.2078]
[1763253404000,0.2418,3155.0,3154.9,0.75071]
[1763253404206,0.1445,3155.0,3154.9,0.75071]
[1763253404401,0.88708499,3155.5,3155.0,0.51378]
[1763253404606,0.88708499,3155.5,3155.1,0.51376]
[1763253404907,0.2418,3155.2,3155.1,0.75066]
[1763253405605,0.2418,3155.2,3154.8,3.72162]
[1763253405813,0.3863,3155.0,3154.9,0.7507]
[1763253406015,0.1445,3155.5,3154.9,0.7507]
[1763253406224,0.8874516,3155.5,3154.9,0.2369]
[1763253406510,0.8874516,3155.5,3154.9,0.75072]
[1763253406712,0.2418,3155.1,3155.0,0.7507]
[1763253407300,0.8874516,3155.5,3155.0,0.7507]
[1763253407907,0.8874516,3155.5,3155.0,0.2369]
[1763253408108,0.8874516,3155.5,3155.0,0.75069]
[1763253408807,0.8874516,3155.5,3155.0,0.2369]
[1763253409009,0.8874516,3155.5,3155.0,0.75069]
[1763253409715,0.2418,3155.1,3155.0,0.75069]
[1763253410109,0.2418,3155.1,3155.0,0.2369]
[1763253412217,3.2078,3155.4,3155.0,0.2369]
[1763253412518,0.2418,3155.1,3155.0,0.2369]
[1763253412918,0.2418,3154.9,3154.8,3.72163]
[1763253413116,0.2418,3154.9,3154.8,3.95853]
[1763253413319,3.2078,3155.4,3154.9,0.75071]
[1763253413919,0.2418,3155.0,3154.9,0.75071]
[1763253414521,3.2078,3155.4,3155.3,0.2369]
[1763253414714,4.19276195,3155.4,3155.3,0.2369]
[1763253414914,0.2418,3155.2,3155.1,0.75068]
[1763253415115,0.2418,3155.2,3155.1,0.2369]
[1763253415725,4.05907517,3155.8,3155.2,0.75067]
[1763253415926,0.2418,3155.3,3155.2,0.75067]
[1763253416326,0.2418,3155.3,3155.2,0.2369]
[1763253416926,0.2418,3155.3,3155.2,0.51377]
[1763253417223,0.2418,3155.3,3155.2,0.75067]
[1763253417927,3.4496,3155.4,3155.3,0.2369]
[1763253418124,0.2418,3155.2,3155.1,0.75067]
[1763253418425,3.4487,3155.4,3155.3,0.2489]
[1763253418625,4.19193226,3155.4,3155.3,0.2489]
[1763253421028,4.19193226,3155.4,3155.0,0.652]
[1763253421229,0.2409,3155.0,3154.9,0.51381]
[1763253421426,0.2409,3155.0,3154.9,0.2489]
[1763253421724,0.2409,3155.0,3154.4,0.00703508]
[1763253421725,0.3865,3154.5,3154.4,0.00703508]
[1763253422034,3.5943,3154.5,3154.4,0.00703508]
[1763253422523,4.33742175,3154.5,3154.4,0.00703508]
[1763253422724,0.3865,3154.0,3153.9,3.2078]
[1763253422925,0.1456,3154.0,3153.5,3.72184]
[1763253423128,0.2409,3153.6,3153.5,3.2078]
[1763253423620,0.1456,3153.5,3153.1,3.2078]
[1763253423821,0.1456,3153.5,3153.1,3.72601524]
[1763253423822,0.14822351,3153.5,3153.1,3.72601524]
[1763253424026,0.14822351,3153.5,3153.2,0.51409]
[1763253424221,0.00262351,3153.5,3153.4,0.76296]
[1763253424520,0.00262351,3153.5,3153.4,0.2489]
[1763253424729,0.24352351,3153.5,3153.4,0.2489]
[1763253425332,0.38912351,3153.5,3153.1,3.72601524]
[1763253425520,0.00262351,3153.5,3153.4,0.76296]
[1763253425719,0.00262351,3153.5,3153.4,0.2489]
[1763253427024,0.24352351,3153.5,3153.4,0.2489]
[1763253428031,0.2409,3153.4,3153.1,3.21191524]
[1763253428235,0.2409,3153.2,3153.1,3.97492524]
[1763253428535,0.00262351,3153.5,3153.4,0.2489]
[1763253428732,0.2409,3153.4,3153.1,0.00411524]
[1763253428934,0.2409,3153.2,3153.1,0.00411524]
[1763253429138,0.2409,3153.2,3153.1,0.76712524]
[1763253429340,0.14822351,3153.5,3153.1,0.76712524]
[1763253429541,0.00262351,3153.5,3153.4,0.76296]
[1763253429933,0.00262351,3153.5,3153.4,0.2489]
[1763253430129,0.00262351,3153.5,3153.4,0.76296]
[1763253430641,0.24352351,3153.5,3153.4,0.2489]
[1763253430940,0.38912351,3153.5,3153.1,0.00411524]
[1763253431238,0.2409,3153.2,3153.1,0.25301524]
[1763253431946,0.2409,3153.2,3153.1,0.00411524]
[1763253432232,0.2409,3153.2,3153.1,0.25301524]
[1763253432437,0.2409,3153.2,3153.1,0.00411524]
[1763253432832,0.2409,3153.2,3153.1,0.25301524]
[1763253433026,0.39112351,3153.5,3153.4,0.2318]
[1763253433432,0.39112351,3153.5,3153.1,0.00411524]
[1763253434035,0.2429,3153.2,3153.1,0.23591524]
[1763253434437,0.2429,3153.2,3153.1,0.00411524]
[1763253434634,3.4507,3153.2,3153.1,0.00411524]
[1763253436241,0.1371,3153.0,3152.0,0.1382]
[1763253436437,3.2078,3152.4,3152.0,0.1382]
[1763253436635,3.2078,3152.4,3151.7,0.51433]
[1763253436835,3.2078,3152.4,3151.6,0.51435]
[1763253437040,3.2078,3152.4,3151.5,0.1382]
[1763253437334,0.2429,3151.7,3151.6,0.2365567]
[1763253438441,0.2429,3151.7,3151.6,0.0047567]
[1763253438840,0.2429,3151.7,3151.6,0.7509067]
[1763253439042,0.2429,3151.7,3151.6,0.2365567]
[1763253439848,3.2078,3151.9,3151.8,0.2318]
[1763253440150,0.0047567,3152.0,3151.9,0.7461]
[1763253440449,3.2078,3152.7,3152.6,0.2318]
[1763253440641,3.4507,3152.7,3152.6,0.74599]
[1763253440944,3.4507,3152.7,3152.6,0.2318]
[1763253442236,3.4507,3152.7,3152.0,0.1435]
[1763253442436,3.4507,3152.7,3151.8,3.2078]
[1763253442637,3.2078,3152.3,3151.8,3.72211]
[1763253442838,3.2078,3152.3,3152.0,0.51428]
[1763253443037,0.1371,3152.5,3152.2,0.74606]
[1763253443237,0.2429,3152.5,3152.4,0.2318]
[1763253443839,3.2078,3152.7,3152.6,0.74599]
[1763253444041,3.2078,3152.7,3152.6,0.2318]
[1763253444337,3.4507,3152.7,3152.6,0.2318]
[1763253444541,3.2078,3152.7,3152.6,0.2318]
[1763253445044,3.4507,3152.7,3152.6,0.2318]
[1763253445252,3.2078,3152.7,3152.6,0.74599]
[1763253447945,3.4507,3152.7,3152.6,0.2318]
[1763253448145,3.4507,3152.7,3152.6,0.74599]
[1763253448349,0.2294,3152.6,3152.5,0.51421]
[1763253448747,0.2294,3152.3,3152.2,3.448]
[1763253448939,0.2294,3152.3,3151.9,0.5143]
[1763253449144,0.2294,3152.0,3151.9,0.5143]
[1763253449349,0.2294,3152.0,3151.8,3.72212]
[1763253449547,3.2078,3152.3,3151.9,0.5143]
[1763253449851,3.2078,3152.3,3152.2,0.75446]
[1763253450051,3.2078,3152.8,3152.4,0.75441]
[1763253450350,0.2294,3152.6,3152.5,0.51419]
[1763253450550,0.2294,3152.4,3152.3,0.51423]
[1763253450738,0.2294,3152.4,3152.0,0.1448]
[1763253450940,0.1373,3152.5,3152.2,0.2402]
[1763253451145,0.2294,3152.5,3152.4,0.75442]
[1763253451449,0.2294,3152.5,3152.4,0.2402]
[1763253451753,0.2294,3152.4,3152.2,0.51424]
[1763253452243,0.2294,3152.2,3152.1,0.51426]
[1763253452745,0.74005943,3152.7,3152.4,0.75441]
[1763253452947,3.2078,3152.8,3152.4,0.75441]
[1763253453849,0.2294,3152.5,3152.4,0.75441]
[1763253454354,0.2294,3152.5,3152.4,0.75442]
[1763253454547,0.3667,3152.5,3152.4,0.75442]
[1763253454748,0.3667,3152.5,3152.1,0.51426]
[1763253455053,0.3667,3152.5,3152.1,0.75446]
[1763253455054,0.2294,3152.2,3152.1,0.75446]
[1763253455255,0.2294,3152.2,3152.1,0.51426]
[1763253455556,0.2294,3152.4,3152.3,0.75441]
[1763253455755,0.2294,3152.4,3151.8,3.2078]
[1763253455756,0.2294,3152.4,3152.1,0.51427]
[1763253456058,0.2294,3152.3,3152.2,0.51424]
[1763253457149,0.2294,3152.3,3152.2,0.75444]
[1763253457350,0.97024074,3152.7,3152.6,0.2402]
[1763253457545,0.97024074,3152.7,3152.2,0.75445]
[1763253457546,0.2294,3152.3,3152.2,0.75445]
[1763253457750,0.2294,3152.3,3152.2,0.2402]
[1763253458159,0.1373,3152.5,3152.3,0.51422]
[1763253458551,0.3667,3152.5,3152.4,0.75442]
[1763253459455,0.3667,3152.5,3152.4,0.2402]
[1763253459756,0.2294,3152.3,3152.2,0.75444]
[1763253461563,0.97024074,3152.5,3152.4,0.2402]
[1763253461756,0.97024074,3152.7,3152.6,0.2402]
[1763253461965,0.97177241,3152.7,3152.6,0.2402]
[1763253463865,0.97220381,3152.7,3152.6,0.2402]
[1763253464259,1.81574329,3152.7,3152.6,0.2402]
[1763253464454,0.74280381,3152.7,3152.6,0.75439]
[1763253464662,2.82691715,3152.8,3152.7,0.75437]
[1763253465262,0.0047567,3153.0,3152.9,0.75434]
[1763253470462,0.0047567,3153.0,3152.9,0.2402]
[1763253472069,0.0047567,3153.0,3152.9,0.75434]
[1763253472876,0.3714567,3153.0,3152.9,0.75434]
[1763253473073,0.2341567,3153.0,3152.9,0.75434]
[1763253473276,0.2294,3152.9,3152.8,0.75436]
[1763253474067,0.2294,3152.7,3152.6,3.2078]
[1763253474278,0.2294,3152.7,3152.6,3.96219]
[1763253474470,0.2294,3152.7,3152.6,3.2078]
[1763253475064,0.1420567,3153.0,3152.0,0.1448]
[1763253475065,0.2294,3152.3,3152.2,3.96223]
[1763253475465,0.1420567,3153.0,3152.5,0.5142]
[1763253475670,0.2294,3152.6,3152.5,0.5142]
[1763253475974,0.2294,3152.6,3152.5,0.7544]
[1763253480380,0.2294,3152.6,3152.5,0.8967]
[1763253480671,0.2274,3152.3,3152.2,3.2078]
[1763253480878,0.2274,3151.9,3151.8,3.95112]
[1763253481176,0.2274,3151.9,3151.8,3.4368]
[1763253481773,3.2078,3152.3,3151.8,3.4368]
[1763253481980,0.2274,3152.2,3152.1,0.74326]
[1763253482369,0.2274,3152.2,3152.1,0.229]
[1763253483376,0.2274,3152.2,3152.0,0.51428]
[1763253483577,0.2274,3152.1,3152.0,0.51428]
[1763253483774,0.2274,3152.0,3151.9,0.229]
[1763253483976,0.2274,3151.9,3151.8,3.2078]
[1763253484178,0.2274,3151.9,3151.8,3.4368]
[1763253484376,0.2274,3151.9,3151.8,3.72212]
[1763253484574,0.2274,3151.9,3151.8,3.95112]
[1763253485875,3.2078,3152.3,3152.2,0.74326]
[1763253487177,3.2078,3152.8,3152.7,0.74316]
[1763253487379,0.0047567,3153.0,3152.9,0.74314]
[1763253488581,0.2321567,3153.0,3152.9,0.74314]
[1763253491177,0.2972567,3153.0,3152.5,0.1423]
[1763253491379,0.2274,3152.7,3152.6,0.74319]
[1763253491584,0.0047567,3153.0,3152.9,0.229]
[1763253491788,0.0047567,3153.0,3152.9,0.74314]
[1763253492788,0.2321567,3153.0,3152.9,0.229]
[1763253494187,0.0047567,3153.0,3152.9,0.74314]
[1763253494590,0.00262351,3153.5,3153.4,0.75276]
[1763253494783,0.98321355,3153.5,3153.4,0.75276]
[1763253495081,0.23812351,3153.5,3153.4,0.75276]
[1763253495587,0.00262351,3153.5,3153.4,0.75276]
[1763253497687,0.00262351,3153.5,3153.4,0.2387]
[1763253498690,0.00262351,3153.5,3153.4,0.75276]
[1763253502787,0.23812351,3153.5,3153.4,0.2387]
[1763253503085,0.00262351,3153.5,3153.4,0.2387]
[1763253503885,0.23812351,3153.5,3153.4,0.2387]
[1763253504187,0.23812351,3153.5,3153.0,0.145]
[1763253504188,0.2355,3153.1,3153.0,0.2387]
[1763253504389,0.2355,3153.1,3153.0,0.3837]
[1763253504581,0.00262351,3153.5,3153.0,0.145]
[1763253504779,0.00262351,3153.5,3153.4,0.75276]
[1763253506075,0.23812351,3153.5,3153.4,0.75276]
[1763253507187,0.00262351,3153.5,3153.4,0.75276]
[1763253509290,0.23812351,3153.5,3153.4,0.75276]
[1763253509485,0.23812351,3153.5,3153.1,0.51409]
[1763253509788,0.00262351,3153.5,3153.4,0.2515]
[1763253509975,0.00262351,3153.5,3153.4,0.76556]
[1763253512886,0.00262351,3153.5,3153.4,0.2515]
[1763253513596,0.00262351,3153.5,3153.4,0.76556]
[1763253514990,0.24962351,3153.5,3153.4,0.2515]
[1763253515389,0.24962351,3153.5,3153.4,0.76556]
[1763253515889,0.24962351,3153.5,3153.4,0.2515]
[1763253516290,0.247,3153.1,3153.0,0.3965]
[1763253516590,0.247,3153.1,3153.0,0.2515]
[1763253517088,0.247,3153.1,3153.0,0.91613]
[1763253517284,0.74555927,3153.4,3153.0,0.91613]
[1763253518389,0.99255927,3153.4,3153.3,0.2515]
[1763253519998,0.247,3153.1,3153.0,0.402]
[1763253521296,0.247,3153.1,3153.0,0.91613]
[1763253523595,0.247,3153.1,3153.0,0.402]
[1763253523797,0.247,3153.1,3152.5,1.8463758]
[1763253523999,0.247,3152.7,3152.6,0.76567]
[1763253524791,0.247,3152.7,3152.6,0.76569]
[1763253526593,3.4548,3152.9,3152.8,0.2515]
[1763253527399,4.05063504,3153.4,3153.0,0.1505]
[1763253527597,0.99264836,3153.3,3153.2,0.2515]
[1763253528086,0.99264836,3153.3,3153.0,0.1505]
[1763253528292,0.247,3153.1,3153.0,0.402]
[1763253528499,0.247,3153.1,3153.0,0.2515]
[1763253529002,0.74564836,3153.3,3153.2,0.2515]
[1763253529195,0.99264836,3153.3,3153.2,0.2515]
[1763253529894,0.247,3153.0,3152.9,0.2515]
[1763253530195,3.4548,3153.0,3152.9,0.2515]
[1763253530594,3.4548,3153.0,3152.9,0.76564]
[1763253530803,0.247,3153.0,3152.9,0.76564]
[1763253531302,0.247,3153.0,3152.9,0.2515]
[1763253531900,3.4548,3153.0,3152.9,0.2515]
[1763253535700,0.84283504,3153.4,3152.9,0.2515]
[1763253535701,4.05063504,3153.4,3153.0,0.1505]
[1763253535900,0.99249872,3153.3,3153.2,0.2515]
[1763253536704,0.99249872,3153.3,3153.2,0.76559]
[1763253536904,0.99249872,3153.3,3153.2,0.2515]
[1763253537105,0.247,3153.1,3153.0,0.402]
[1763253537803,0.74549872,3153.3,3153.2,0.2515]
[1763253538198,0.99249872,3153.3,3153.2,0.2515]
[1763253538600,0.2463,3153.1,3153.0,0.76213]
[1763253539003,0.2463,3153.1,3153.0,0.90753]
[1763253541104,0.2463,3153.1,3153.0,0.3934]
[1763253541809,0.99179872,3153.3,3153.2,0.248]
[1763253542905,0.2463,3152.7,3152.6,3.4558]
[1763253543107,0.2463,3152.3,3152.2,3.4558]
[1763253543302,0.2463,3152.3,3152.2,3.97006]
[1763253543504,0.2463,3152.3,3152.2,3.2078]
[1763253544412,0.99179872,3152.5,3152.4,0.248]
[1763253544610,0.2463,3152.5,3152.4,0.248]
[1763253544911,0.2463,3152.3,3152.2,3.4558]
[1763253545113,0.2463,3152.3,3152.2,3.97006]
[1763253545510,0.2463,3152.1,3151.7,3.2078]
[1763253545709,0.2463,3151.9,3151.8,0.248]
[1763253546505,0.0047567,3152.2,3152.1,0.248]
[1763253547510,0.2510567,3152.2,3152.1,0.248]
[1763253547710,0.0047567,3152.2,3152.1,0.248]
[1763253548110,0.0047567,3152.2,3152.1,0.76227]
[1763253548819,0.2510567,3152.2,3152.1,0.248]
[1763253551522,0.2510567,3152.2,3152.1,0.76227]
[1763253552625,0.2510567,3152.2,3152.1,0.248]
[1763253554025,0.2510567,3152.2,3152.1,0.76227]
[1763253555229,0.0047567,3152.2,3152.1,0.76227]
[1763253556932,0.0047567,3152.2,3152.1,0.248]
[1763253557132,0.2398567,3152.2,3152.1,0.248]
[1763253557632,0.2351,3152.1,3151.8,0.51432]
[1763253558025,0.0047567,3152.2,3152.1,0.2468]
[1763253558026,0.2398567,3152.2,3152.1,0.2468]
[1763253559031,0.2398567,3152.2,3152.1,0.76107]
[1763253559630,0.2398567,3152.2,3152.1,0.2468]
[1763253559833,0.0047567,3152.2,3152.1,0.76107]
[1763253561134,0.2351,3152.1,3151.8,0.51432]
[1763253561337,0.2351,3152.1,3152.0,0.2468]
[1763253562937,0.2351,3152.1,3152.0,0.76109]
[1763253563238,0.0047567,3152.2,3152.1,0.76107]
[1763253564039,3.20154022,3152.5,3152.4,0.76102]
[1763253565238,0.00316556,3152.8,3152.7,0.2468]
[1763253566038,0.23826556,3152.8,3152.7,0.2468]
[1763253566539,0.23826556,3152.8,3152.7,0.76097]
[1763253567436,0.00316556,3152.8,3152.7,0.76097]
[1763253569246,0.74894856,3152.8,3152.7,0.76097]
[1763253571341,0.98404856,3152.8,3152.7,0.2468]
[1763253571542,0.2467,3152.3,3152.2,0.2504]
[1763253572747,0.2467,3151.9,3151.8,0.2504]
[1763253574043,0.2467,3151.9,3151.8,0.76472]
[1763253574646,0.2467,3152.1,3152.0,0.76469]
[1763253575250,0.2467,3152.1,3152.0,0.90949]
[1763253575445,0.2467,3152.1,3152.0,0.3952]
[1763253575852,0.2467,3152.1,3152.0,0.90949]
[1763253576148,0.74641336,3152.4,3152.0,0.90949]
[1763253577549,0.99311336,3152.4,3152.3,0.2504]
[1763253581052,0.2467,3152.4,3152.3,0.2504]
[1763253581253,3.4545,3152.4,3152.3,0.2504]
[1763253581452,4.20091336,3152.4,3152.3,0.2504]
[1763253585449,0.2467,3152.0,3151.9,0.5143]
[1763253585651,0.2467,3152.0,3151.9,0.7647]
[1763253586566,0.2467,3152.0,3151.9,0.2504]
[1763253586772,0.2467,3151.8,3151.7,0.76473]
[1763253587071,0.74641336,3152.3,3151.7,0.76473]
[1763253589474,0.2467,3152.0,3151.9,0.7647]
[1763253589980,0.74641336,3152.3,3151.6,3.2125567]
[1763253589981,0.74641336,3152.3,3152.2,0.76466]
[1763253590180,4.30061664,3152.8,3152.7,0.2504]
[1763253590471,0.2467,3152.6,3152.5,0.3952]
[1763253590871,0.2467,3152.6,3152.5,0.2504]
[1763253591076,0.2467,3152.6,3152.5,0.3952]
[1763253592170,0.2467,3152.6,3152.5,0.2504]
[1763253592474,0.2467,3152.5,3152.4,0.2504]
[1763253593268,0.2467,3152.5,3152.4,0.76462]
[1763253595672,0.7471739,3152.7,3152.6,0.76459]
[1763253596574,3.21096556,3152.8,3152.7,0.76457]
[1763253597680,0.00316556,3152.8,3152.7,0.76457]
[1763253600779,0.00316556,3152.8,3152.7,3.97237]
[1763253600983,0.7472959,3153.4,3153.3,0.75358]
[1763253601184,14.028,3154.4,3154.0,0.63496]
[1763253601185,0.08745108,3154.1,3154.0,0.63496]
[1763253601484,0.1458,3154.5,3154.0,3.2078]
[1763253601789,16.4634,3155.0,3154.9,0.51382]
[1763253602087,0.1514509,3155.0,3154.9,0.51683467]
[1763253602280,3.3536,3155.5,3155.4,0.51373]
[1763253602479,3.3536,3155.5,3154.9,0.51683467]
[1763253602480,0.1458,3155.0,3154.9,0.51683467]
[1763253603182,3.3536,3155.5,3155.4,0.51373]
[1763253603388,0.14896302,3155.5,3155.4,0.51373]
[1763253603982,0.00316302,3155.5,3155.4,0.51373]
[1763253604684,0.14896302,3155.5,3155.4,0.51373]
[1763253611989,0.00316302,3155.5,3155.4,0.51373]
[1763253613796,0.14266302,3155.5,3155.4,0.51373]
[1763253619400,0.1458,3156.0,3155.9,0.51365]
[1763253619598,0.1458,3156.0,3155.9,3.72145]
[1763253620298,0.14958789,3156.0,3155.9,3.72145]
[1763253622804,0.39878789,3156.0,3155.9,3.72145]
[1763253623402,0.14958789,3156.0,3155.9,3.72145]
[1763253627104,0.39878789,3156.0,3155.9,3.72145]
[1763253628808,0.2492,3155.6,3155.5,3.72152]
[1763253633208,0.72945822,3155.8,3155.7,0.51369]
[1763253633411,0.72945822,3155.9,3155.5,3.2078]
[1763253633711,0.14958789,3156.0,3155.9,0.51365]
[1763253634013,0.00378789,3156.0,3155.9,3.72145]
[1763253634911,0.40418789,3156.0,3155.9,0.51365]
[1763253635307,0.15358789,3156.0,3155.8,0.51367]
[1763253635615,0.98030136,3155.9,3155.8,0.51367]
[1763253637911,0.2506,3155.9,3155.8,0.51367]
[1763253638414,0.98030136,3155.9,3155.8,0.51367]
[1763253638612,0.2506,3155.9,3155.8,0.51367]
[1763253639019,0.98030136,3155.9,3155.8,0.51367]
[1763253639221,0.2506,3155.9,3155.8,0.51367]
[1763253640720,0.88328925,3156.0,3155.9,0.51365]
[1763253640930,1.13388925,3156.0,3155.9,0.51365]
[1763253641119,0.40418789,3156.0,3155.9,0.51365]
[1763253641426,1.13388925,3156.0,3155.9,0.51365]
[1763253641612,0.40418789,3156.0,3155.9,0.51365]
[1763253641812,1.13388925,3156.0,3155.9,0.51365]
[1763253642017,0.40418789,3156.0,3155.9,0.51365]
[1763253642214,1.13388925,3156.0,3155.9,0.51365]
[1763253642415,0.40418789,3156.0,3155.9,0.51365]
[1763253643120,1.13388925,3156.0,3155.9,0.51365]
[1763253643618,0.88328925,3156.0,3155.9,0.51365]
[1763253643923,1.13388925,3156.0,3155.9,0.51365]
[1763253647924,16.48688925,3156.0,3155.9,0.51365]
[1763253648222,16.23628925,3156.0,3155.8,0.51365]
[1763253648520,0.98057675,3155.9,3155.8,0.51365]
[1763253648926,0.2506,3155.6,3155.5,3.72151]
[1763253649528,0.2506,3155.6,3155.5,3.2078]
[1763253649720,0.2506,3155.6,3155.5,3.72152]
[1763253650023,0.2506,3155.6,3155.5,3.2078]
[1763253652526,0.2506,3155.4,3155.3,0.51375]
[1763253652822,15.6036,3155.4,3155.3,0.51375]
[1763253653020,0.2506,3155.1,3155.0,3.2078]
[1763253654022,0.2506,3155.1,3155.0,3.7216]
[1763253656228,3.9958,3155.5,3155.0,3.2078]
[1763253656532,3.9958,3155.5,3155.4,0.51373]
[1763253657432,4.2464,3155.5,3155.4,3.72153]
[1763253658126,0.4004,3155.5,3155.4,3.72153]
[1763253659831,0.1498,3155.5,3155.4,3.72153]
[1763253665240,0.15358789,3156.0,3155.9,0.51365]
[1763253665448,0.00378789,3156.0,3155.9,3.72145]
[1763253665742,0.1458,3156.5,3156.4,0.51357]
[1763253666743,0.1488221,3156.5,3156.4,0.51357]
[1763253668057,0.3964221,3156.5,3156.4,0.51357]
[1763253668856,0.1488221,3156.5,3156.4,0.51357]
[1763253669543,0.3964221,3156.5,3156.4,0.51357]
[1763253671157,0.3964221,3156.5,3156.3,0.51359]
[1763253671158,0.2476,3156.4,3156.3,0.51359]
[1763253671863,0.3972,3156.0,3155.9,3.2078]
[1763253672158,0.1496,3156.0,3155.9,3.72145]
[1763253672360,0.1488221,3156.5,3156.4,0.51357]
[1763253672560,0.1498,3157.0,3156.9,0.51349]
[1763253672764,0.1498,3157.0,3156.9,3.72129]
[1763253673058,0.1496,3157.5,3157.4,0.51341]
[1763253673260,0.3983,3157.5,3157.4,0.51341]
[1763253673653,0.40236591,3157.5,3157.4,0.51606517]
[1763253676152,0.40236591,3157.5,3157.4,0.00265517]
[1763253676355,0.40236591,3157.5,3157.4,0.51606517]
[1763253676854,0.15366591,3157.5,3157.4,0.51606517]
[1763253678458,0.00406591,3157.5,3157.4,0.51606517]
[1763253678666,0.14026591,3157.5,3157.4,0.51606517]
[1763253679060,0.38896591,3157.5,3157.4,0.51606517]
[1763253679263,0.14026591,3157.5,3157.4,0.51606517]
[1763253679757,0.38896591,3157.5,3157.4,0.51606517]
[1763253682363,0.14026591,3157.5,3157.4,0.51606517]
[1763253683363,0.00406591,3157.5,3157.4,6.51606517]
[1763253683567,0.3983,3158.0,3157.9,0.51333]
[1763253683768,0.3983,3158.0,3157.9,3.72113]
[1763253684561,0.40213632,3158.0,3157.9,3.72113]
[1763253688167,0.15343632,3158.0,3157.9,3.72113]
[1763253688771,0.38063632,3158.0,3157.9,3.72113]
[1763253690876,0.38063632,3158.0,3157.9,0.51333]
[1763253692770,0.15343632,3158.0,3157.9,0.51333]
[1763253694078,0.15343632,3158.0,3157.9,3.72113]
[1763253696278,0.38063632,3158.0,3157.9,3.72113]
[1763253698780,0.15343632,3158.0,3157.9,3.72113]
[1763253699980,0.2272,3157.6,3157.5,3.72119]
[1763253700182,0.2272,3157.6,3157.5,3.2078]
[1763253700387,0.15343632,3158.0,3157.5,3.2078]
[1763253700575,0.15343632,3158.0,3157.6,0.51338]
[1763253700770,0.15343632,3158.0,3157.7,0.51335]
[1763253700973,0.2272,3157.6,3157.5,3.2078]
[1763253701277,0.2272,3157.6,3157.5,3.72119]
[1763253701982,0.15343632,3158.0,3157.8,0.51333]
[1763253702178,0.2272,3157.9,3157.8,0.51333]
[1763253702771,0.15343632,3158.0,3157.9,0.51333]
[1763253703087,0.38063632,3158.0,3157.9,0.51333]
[1763253703278,1.11048341,3158.0,3157.9,0.51333]
[1763253703479,0.38063632,3158.0,3157.9,0.51333]
[1763253705281,0.2272,3157.6,3157.5,3.2078]
[1763253707087,0.2272,3157.6,3157.5,3.72119]
[1763253707488,0.2272,3157.6,3157.5,0.51339]
[1763253707782,0.95734204,3157.6,3157.5,0.51339]
[1763253707989,0.3696,3157.5,3157.4,0.51606517]
[1763253712188,0.15343632,3158.0,3157.9,0.51333]
[1763253712387,0.15343632,3158.0,3157.9,3.72113]
[1763253712595,0.15343632,3158.0,3157.9,0.51333]
[1763253713394,0.38063632,3158.0,3157.9,0.51333]
[1763253713898,0.15343632,3158.0,3157.9,0.51333]
[1763253714094,0.38063632,3158.0,3157.9,0.51333]
[1763253716300,0.00038139,3158.0,3157.9,0.51333]
[1763253716501,0.2272,3157.6,3157.5,4.91478786]
[1763253716702,0.3696,3158.0,3157.9,0.51333]
[1763253717202,0.3696,3158.0,3157.9,0.61703]
[1763253717502,0.14560751,3158.0,3157.9,0.61703]
[1763253718104,0.00320751,3158.0,3157.9,3.82483]
[1763253720302,0.15330751,3158.0,3157.9,3.82483]
[1763253720505,0.40480751,3158.0,3157.9,3.2078]
[1763253721210,0.15330751,3158.0,3157.6,0.51338]
[1763253721510,0.4016,3157.5,3157.4,3.21045517]
[1763253723605,0.4016,3157.5,3157.4,0.00265517]
[1763253724010,0.2515,3157.1,3157.0,3.72127]
[1763253724603,0.2515,3157.1,3156.9,0.51349]
[1763253724808,0.72957323,3157.2,3156.9,0.51349]
[1763253724809,0.4016,3157.0,3156.9,0.51349]
[1763253725005,0.4016,3157.0,3156.9,0.51676614]
[1763253727914,0.4016,3157.0,3156.9,0.62346614]
[1763253729106,0.1501,3157.0,3156.9,0.62346614]
[1763253730907,0.4016,3157.0,3156.9,0.62346614]
[1763253735422,0.1501,3157.0,3156.9,0.62346614]
[1763253735718,3.2078,3157.3,3157.2,0.62034]
[1763253737420,3.4501,3157.3,3157.2,0.62034]
[1763253737619,3.4501,3157.3,3157.1,0.51346]
[1763253737819,3.2078,3157.3,3157.2,0.62034]
[1763253739021,3.4501,3157.3,3157.2,0.62034]
[1763253739224,0.141,3157.0,3156.9,0.11017614]
[1763253739518,3.2078,3157.3,3157.2,0.1069]
[1763253739726,3.2078,3157.3,3157.2,0.62034]
[1763253740026,0.8483787,3157.8,3157.7,0.51336]
[1763253740027,3.4501,3157.8,3157.7,0.51336]
[1763253740222,0.2423,3157.8,3157.7,0.51336]
[1763253742528,0.39560751,3158.0,3157.9,0.51333]
[1763253743518,0.15330751,3158.0,3157.9,0.51333]
[1763253743920,0.39560751,3158.0,3157.9,0.51333]
[1763253746619,0.15330751,3158.0,3157.9,0.51333]
[1763253747129,0.39560751,3158.0,3157.9,0.51333]
[1763253748333,0.15330751,3158.0,3157.9,0.51333]
[1763253748725,0.38050751,3158.0,3157.9,0.51333]
[1763253750633,0.15330751,3158.0,3157.9,0.51333]
[1763253751035,0.38050751,3158.0,3157.9,0.51333]
[1763253753129,0.15330751,3158.0,3157.9,0.51333]
[1763253754337,0.38050751,3158.0,3157.9,0.51333]
[1763253755835,0.15330751,3158.0,3157.9,0.51333]
[1763253756336,0.1496,3158.5,3158.4,0.51325]
[1763253756635,0.0346,3158.7,3158.6,0.51321]
[1763253756840,0.73017498,3159.2,3158.4,3.2078]